bitfinex-derivatives/quotes_BTCF0:USTF0_20250325
["timestamp","ask_amount","ask_price","bid_price","bid_amount"]
[1742909642845,0.17145001,87992.0,87991.0,0.3608]
[1742909643038,0.17145001,87992.0,87991.0,0.49204]
[1742909643644,0.00100001,87992.0,87991.0,0.6056743]
[1742909643854,0.0004,87992.0,87991.0,0.6056743]
[1742909644051,0.114033,87992.0,87991.0,0.49204]
[1742909644240,0.114033,87992.0,87991.0,0.6056743]
[1742909644437,0.00144001,87992.0,87991.0,0.8856743]
[1742909644637,0.0004,87992.0,87991.0,0.77204]
[1742909644837,0.0004,87992.0,87991.0,0.49204]
[1742909644838,0.114033,87992.0,87991.0,0.49204]
[1742909645048,0.11507301,87992.0,87991.0,0.6056743]
[1742909645244,0.00144001,87992.0,87991.0,0.6056743]
[1742909645553,0.114033,87992.0,87991.0,0.49204]
[1742909645741,0.11515301,87992.0,87991.0,0.49204]
[1742909646243,0.11515301,87992.0,87991.0,0.77204]
[1742909646641,0.00152001,87992.0,87991.0,1.1556743]
[1742909646844,0.0004,87992.0,87991.0,0.8856743]
[1742909647048,0.114033,87992.0,87991.0,0.49204]
[1742909647253,0.11507301,87992.0,87991.0,0.49204]
[1742909647950,0.25687301,87992.0,87991.0,0.49204]
[1742909648648,0.25687301,87992.0,87991.0,0.13124]
[1742909648953,0.25687301,87992.0,87991.0,0.1302]
[1742909649247,0.25687301,87992.0,87991.0,0.13124]
[1742909649440,0.1136371,87989.0,87979.0,0.3608]
[1742909649639,0.13516,87991.0,87988.0,0.4332]
[1742909649841,0.136,87991.0,87990.0,0.1136356]
[1742909650040,0.0004,87992.0,87991.0,0.1136343]
[1742909650255,0.00116,87992.0,87991.0,0.4118943]
[1742909650456,0.00116,87992.0,87991.0,0.4842943]
[1742909650661,0.114833,87992.0,87991.0,0.2542943]
[1742909650844,0.475633,87992.0,87991.0,0.14066]
[1742909651049,0.1136563,87974.0,87973.0,0.0709]
[1742909651245,0.1144963,87974.0,87973.0,0.0709]
[1742909651444,0.1144963,87974.0,87973.0,0.1853975]
[1742909651743,0.1144963,87974.0,87973.0,0.3252975]
[1742909651942,0.1144963,87974.0,87973.0,0.4352975]
[1742909652157,0.1144963,87974.0,87973.0,0.00084]
[1742909652346,0.1136588,87972.0,87971.0,0.00017053]
[1742909652657,0.1144188,87972.0,87971.0,0.37179063]
[1742909652958,0.1144188,87972.0,87971.0,0.25813053]
[1742909653144,0.1144188,87972.0,87971.0,0.62259063]
[1742909653145,0.00076,87972.0,87971.0,0.62259063]
[1742909653344,0.00076,87972.0,87971.0,0.83259063]
[1742909653545,0.1136588,87972.0,87971.0,0.83259063]
[1742909653844,0.1144988,87972.0,87971.0,0.50893053]
[1742909654645,0.00084,87972.0,87971.0,0.72259063]
[1742909654851,0.1144988,87972.0,87971.0,0.72259063]
[1742909655253,0.00084,87972.0,87971.0,0.82259063]
[1742909655446,8e-05,87975.0,87974.0,0.1136563]
[1742909655751,0.1704724,87982.0,87981.0,0.1136472]
[1742909655952,0.1712324,87982.0,87981.0,0.2244072]
[1742909656251,0.0014,87982.0,87981.0,0.6952072]
[1742909656459,0.1136459,87982.0,87981.0,0.61086]
[1742909656957,0.1144059,87982.0,87981.0,0.61086]
[1742909657264,0.1136459,87982.0,87981.0,0.61086]
[1742909657446,0.1144059,87982.0,87981.0,0.61086]
[1742909657648,0.2489659,87982.0,87981.0,0.61086]
[1742909657859,0.2489659,87982.0,87981.0,0.00076]
[1742909658157,0.1136537,87976.0,87975.0,0.0733]
[1742909658350,0.1144137,87976.0,87975.0,0.07414]
[1742909658854,0.4752137,87976.0,87975.0,0.00084]
[1742909659158,0.4752137,87976.0,87952.0,0.0688]
[1742909659159,0.1136834,87953.0,87952.0,0.0688]
[1742909659355,0.1143634,87953.0,87952.0,0.1461]
[1742909659751,0.1143634,87953.0,87952.0,0.0006]
[1742909659947,0.1136899,87948.0,87947.0,0.19966593]
[1742909660159,0.4753299,87948.0,87947.0,0.20026593]
[1742909660652,0.113695,87944.0,87943.0,1e-08]
[1742909660856,0.1137041,87937.0,87935.0,0.00045488]
[1742909661057,0.1137054,87936.0,87935.0,8e-08]
[1742909661263,0.18504541,87936.0,87935.0,0.00060008]
[1742909661858,0.31908541,87936.0,87935.0,0.00060008]
[1742909662157,0.07134001,87936.0,87935.0,0.36140008]
[1742909662354,0.2477054,87936.0,87935.0,0.36140008]
[1742909662553,0.24874541,87936.0,87935.0,0.36140008]
[1742909662749,0.11474541,87936.0,87935.0,0.00060008]
[1742909662949,0.24858541,87936.0,87935.0,0.00060008]
[1742909663149,0.1137118,87931.0,87930.0,0.40182386]
[1742909663350,0.11491181,87931.0,87930.0,0.40242386]
[1742909663554,0.11491181,87931.0,87930.0,0.0006]
[1742909663755,0.1137157,87928.0,87927.0,0.00017053]
[1742909663959,0.28544622,87928.0,87927.0,0.00017053]
[1742909664160,0.1137261,87920.0,87896.0,0.3608]
[1742909664460,0.1137287,87918.0,87917.0,0.3608]
[1742909664653,0.1137287,87918.0,87917.0,0.3614]
[1742909664852,0.11492871,87918.0,87917.0,0.3614]
[1742909665075,0.00120001,87918.0,87917.0,0.7051299]
[1742909665359,0.1137287,87918.0,87917.0,0.5851299]
[1742909665557,0.1150087,87918.0,87917.0,0.6596299]
[1742909666063,0.00128,87918.0,87917.0,0.7496299]
[1742909666263,0.1137272,87921.0,87920.0,0.1137253]
[1742909666561,0.11492721,87921.0,87920.0,0.4388253]
[1742909666855,0.11492721,87921.0,87920.0,0.3251]
[1742909667459,0.25942721,87921.0,87920.0,0.3251]
[1742909667656,0.00120001,87921.0,87920.0,0.4251]
[1742909667955,0.21528922,87923.0,87922.0,0.1137235]
[1742909668159,0.21528922,87923.0,87922.0,0.3906]
[1742909668344,0.21528922,87923.0,87922.0,0.0006]
[1742909668550,0.21648923,87923.0,87922.0,0.1006]
[1742909670160,0.21648923,87923.0,87922.0,0.1106]
[1742909670851,0.10276703,87923.0,87922.0,0.2243235]
[1742909671051,0.10156702,87923.0,87922.0,0.3343235]
[1742909671258,0.21652923,87923.0,87922.0,0.4025235]
[1742909671569,0.10280703,87923.0,87922.0,0.4025235]
[1742909672568,0.00124001,87923.0,87922.0,0.4025235]
[1742909672958,0.00025053,87926.0,87925.0,0.1137196]
[1742909673157,0.0004,87928.0,87927.0,0.113717]
[1742909673357,0.0004,87928.0,87927.0,0.604317]
[1742909673763,0.0004,87928.0,87927.0,0.672917]
[1742909674266,0.13542269,87932.0,87931.0,0.1137118]
[1742909674462,0.25005319,87932.0,87931.0,0.47148]
[1742909674761,0.25005319,87932.0,87931.0,0.36148]
[1742909675152,0.31795319,87932.0,87931.0,0.36148]
[1742909675459,0.31795319,87932.0,87931.0,0.46148]
[1742909675950,0.1825305,87932.0,87931.0,0.46148]
[1742909676752,0.3151305,87932.0,87931.0,0.36148]
[1742909677561,0.3151305,87932.0,87931.0,0.00068]
[1742909677764,0.3151305,87932.0,87919.0,0.00045496]
[1742909677765,0.1137261,87920.0,87919.0,0.00045496]
[1742909678066,0.1137468,87904.0,87896.0,0.3608]
[1742909678262,0.24742681,87904.0,87903.0,0.00105504]
[1742909678464,0.1137675,87888.0,87887.0,0.36125513]
[1742909678663,0.11500751,87888.0,87887.0,0.36193513]
[1742909680076,0.11500751,87888.0,87887.0,0.00113513]
[1742909680265,0.1137778,87880.0,87879.0,0.00017064]
[1742909680467,0.11517781,87880.0,87879.0,0.00081064]
[1742909680763,0.11517781,87880.0,87879.0,0.00017064]
[1742909680962,0.11517781,87880.0,87879.0,0.00077064]
[1742909681367,0.1137843,87875.0,87874.0,0.3608]
[1742909681570,0.2482243,87875.0,87874.0,0.3608]
[1742909682356,0.0568968,87868.0,87864.0,0.3608]
[1742909682563,0.1138076,87857.0,87856.0,0.2284]
[1742909682763,0.2482476,87857.0,87856.0,0.2284]
[1742909683068,0.2482476,87857.0,87856.0,0.1119]
[1742909683264,0.1138089,87856.0,87849.0,0.3608]
[1742909683468,0.3398089,87856.0,87849.0,0.4727]
[1742909684675,0.1138167,87850.0,87849.0,0.3608]
[1742909684863,0.1154167,87850.0,87849.0,0.3608]
[1742909685067,0.113818,87849.0,87848.0,0.00017064]
[1742909685264,0.337818,87849.0,87848.0,0.00017064]
[1742909685671,0.224,87849.0,87848.0,0.36097064]
[1742909685870,0.337818,87849.0,87848.0,0.36097064]
[1742909687069,0.13396,87849.0,87848.0,0.36097064]
[1742909687262,0.247778,87849.0,87848.0,0.46097064]
[1742909687474,0.247778,87849.0,87848.0,0.36097064]
[1742909687776,0.247778,87849.0,87848.0,1.86097064]
[1742909688071,0.246178,87849.0,87848.0,0.36097064]
[1742909688276,0.247778,87849.0,87848.0,0.36097064]
[1742909689765,0.474178,87849.0,87848.0,0.36097064]
[1742909690074,0.247778,87849.0,87848.0,0.36097064]
[1742909690466,0.13328,87849.0,87848.0,0.36097064]
[1742909690866,0.13168,87849.0,87848.0,0.47478994]
[1742909691072,0.247178,87849.0,87848.0,0.36097064]
[1742909691372,0.247098,87849.0,87848.0,0.57917064]
[1742909692265,0.115418,87849.0,87848.0,0.57917064]
[1742909692459,0.246738,87849.0,87848.0,0.57917064]
[1742909693171,0.246738,87849.0,87848.0,0.47007064]
[1742909693472,0.246738,87849.0,87848.0,0.36097064]
[1742909693972,0.361638,87849.0,87848.0,0.36097064]
[1742909694363,0.246738,87849.0,87848.0,0.36097064]
[1742909694769,0.115418,87849.0,87848.0,0.36097064]
[1742909695084,0.246258,87849.0,87848.0,0.36097064]
[1742909695476,0.607058,87849.0,87848.0,0.00017064]
[1742909695871,0.1138283,87841.0,87840.0,0.1091]
[1742909696082,0.1154683,87841.0,87840.0,0.1091]
[1742909696473,0.1154683,87841.0,87840.0,0.219]
[1742909697663,0.1154683,87841.0,87840.0,0.1091]
[1742909698576,0.1154683,87841.0,87840.0,0.2159]
[1742909698963,0.1138296,87840.0,87839.0,0.36125538]
[1742909699164,0.1138296,87840.0,87832.0,0.00017074]
[1742909699165,0.1138374,87834.0,87832.0,0.00017074]
[1742909699364,0.4675787,87833.0,87832.0,0.00017074]
[1742909699564,0.1138504,87824.0,87821.0,0.2231]
[1742909699772,0.1155304,87824.0,87821.0,0.2231]
[1742909700476,0.1138711,87808.0,87807.0,0.00045554]
[1742909700681,0.2454711,87808.0,87807.0,0.00045554]
[1742909700877,0.1138802,87801.0,87800.0,0.1]
[1742909701187,0.113888,87795.0,87794.0,0.3608]
[1742909701379,0.115488,87795.0,87794.0,0.3608]
[1742909701677,0.0016,87795.0,87794.0,0.6546893]
[1742909701880,0.12988,87802.0,87801.0,0.1138802]
[1742909702075,0.12988,87802.0,87801.0,0.3838802]
[1742909702275,0.1138782,87803.0,87801.0,0.1]
[1742909702481,0.0016,87803.0,87802.0,0.1138789]
[1742909702777,8e-05,87806.0,87802.0,0.6598]
[1742909702982,0.1139537,87806.0,87805.0,0.3608]
[1742909703169,0.1155937,87806.0,87805.0,0.3608]
[1742909703369,0.1155937,87806.0,87805.0,0.6508]
[1742909703680,0.00017084,87810.0,87809.0,0.1138698]
[1742909703885,0.00017084,87810.0,87809.0,0.8653098]
[1742909704177,0.11,87831.0,87815.0,0.113862]
[1742909704178,0.1142607,87816.0,87815.0,0.113862]
[1742909704385,0.1138633,87814.0,87813.0,0.1126]
[1742909704580,0.1150233,87814.0,87813.0,0.0006]
[1742909705276,0.3311233,87814.0,87813.0,0.0006]
[1742909705678,0.113888,87795.0,87791.0,0.00045562]
[1742909705874,0.24488801,87795.0,87794.0,0.36196]
[1742909706475,0.0569452,87794.0,87776.0,0.1105]
[1742909706676,0.1139113,87777.0,87776.0,0.1306]
[1742909706881,0.2451113,87777.0,87776.0,0.1306]
[1742909707082,0.2451113,87777.0,87776.0,0.0006]
[1742909707284,0.2451113,87777.0,87776.0,0.1083]
[1742909707588,0.4652113,87777.0,87776.0,0.0006]
[1742909707780,0.52183051,87777.0,87769.0,0.36250929]
[1742909707983,0.1139308,87762.0,87761.0,0.1077]
[1742909708177,0.1139308,87762.0,87746.0,0.3608]
[1742909708178,0.30233052,87762.0,87746.0,0.3608]
[1742909708481,0.1139334,87760.0,87747.0,0.1077]
[1742909708671,0.11557341,87760.0,87747.0,0.1077]
[1742909708870,0.33567341,87760.0,87747.0,0.1077]
[1742909709376,0.33567341,87760.0,87757.0,0.3608]
[1742909709581,0.00164001,87760.0,87759.0,0.47125579]
[1742909709772,0.0569609,87769.0,87759.0,0.45125579]
[1742909709978,0.113923,87768.0,87767.0,0.3608]
[1742909710182,0.11556301,87768.0,87767.0,0.3608]
[1742909710474,0.1139334,87760.0,87759.0,0.36125579]
[1742909710680,0.11557341,87760.0,87759.0,0.36125579]
[1742909711080,0.11557341,87760.0,87759.0,0.43125579]
[1742909711278,0.34997341,87760.0,87759.0,0.43125579]
[1742909711482,0.11557341,87760.0,87759.0,0.43125579]
[1742909711674,0.00164001,87760.0,87759.0,0.43125579]
[1742909712073,0.00017084,87770.0,87769.0,0.1139217]
[1742909712284,0.00017084,87770.0,87769.0,0.7653617]
[1742909712484,0.00129085,87770.0,87769.0,0.7653617]
[1742909712787,0.00017084,87770.0,87769.0,0.8053617]
[1742909712984,0.13036,87777.0,87776.0,0.1139126]
[1742909713188,0.13032,87787.0,87781.0,0.0569525]
[1742909713486,0.0012,87784.0,87783.0,0.1139036]
[1742909713788,0.1139023,87784.0,87783.0,0.0006]
[1742909713984,0.0008,87784.0,87783.0,0.2245036]
[1742909714191,0.1147023,87784.0,87783.0,0.1106]
[1742909714385,0.0570286,87788.0,87785.0,0.0569505]
[1742909714386,8e-05,87788.0,87785.0,0.0569505]
[1742909714580,0.00072,87788.0,87785.0,0.1675905]
[1742909714773,0.0583486,87788.0,87785.0,0.00064]
[1742909714979,0.1138997,87786.0,87785.0,0.00064]
[1742909715179,0.1145397,87786.0,87785.0,0.00064]
[1742909715576,0.1145397,87786.0,87780.0,0.3608]
[1742909715577,0.1139126,87776.0,87775.0,0.00062655]
[1742909715779,0.2461526,87776.0,87775.0,0.00062655]
[1742909715981,0.13224,87776.0,87775.0,0.00062655]
[1742909716182,0.2461526,87776.0,87775.0,0.00062655]
[1742909716392,0.2459926,87776.0,87775.0,0.00122655]
[1742909716588,0.1146726,87776.0,87775.0,0.11512655]
[1742909716791,0.00025084,87792.0,87791.0,0.1138932]
[1742909716990,0.13124,87812.0,87791.0,1.20224]
[1742909717181,0.00068,87812.0,87811.0,0.3608]
[1742909717385,0.1145459,87812.0,87811.0,0.36144]
[1742909717685,0.1138789,87802.0,87801.0,0.3608]
[1742909717888,0.2461989,87802.0,87801.0,0.3614]
[1742909718484,0.1145989,87802.0,87801.0,0.3614]
[1742909718681,0.2461589,87802.0,87801.0,0.3614]
[1742909718881,0.2460789,87802.0,87801.0,0.3614]
[1742909720393,0.2462789,87802.0,87801.0,0.3614]
[1742909720593,0.2462789,87802.0,87801.0,0.0006]
[1742909720797,0.1139126,87776.0,87774.0,0.3608]
[1742909720994,0.1139126,87776.0,87775.0,0.00105571]
[1742909720995,0.1146326,87776.0,87775.0,0.00105571]
[1742909721504,0.1146326,87776.0,87775.0,0.36105571]
[1742909721683,0.00072,87776.0,87775.0,0.46355571]
[1742909722000,0.0569524,87782.0,87775.0,0.46355571]
[1742909722200,0.00088,87782.0,87777.0,0.3608]
[1742909722495,0.00017084,87784.0,87777.0,0.7114]
[1742909722708,0.11391,87778.0,87777.0,0.7114]
[1742909722899,0.24547,87778.0,87777.0,0.3614]
[1742909723201,0.24623,87778.0,87777.0,0.3614]
[1742909723902,0.24623,87778.0,87759.0,0.11438969]
[1742909723903,0.113923,87768.0,87766.0,0.3608]
[1742909724202,0.11480301,87768.0,87767.0,0.19077084]
[1742909724604,0.11480301,87768.0,87767.0,0.19017084]
[1742909724994,0.1139334,87760.0,87759.0,0.00045579]
[1742909725188,0.1139334,87760.0,87747.0,0.3608]
[1742909725189,0.113949,87748.0,87747.0,0.3608]
[1742909725396,0.24638901,87748.0,87747.0,0.3614]
[1742909726293,0.47278901,87748.0,87747.0,0.3614]
[1742909726496,0.35748901,87748.0,87747.0,0.3614]
[1742909726707,0.13216001,87748.0,87747.0,1.0561503]
[1742909726908,0.113949,87748.0,87747.0,0.9422]
[1742909727109,0.11490901,87748.0,87747.0,0.9422]
[1742909727492,0.00096001,87748.0,87747.0,0.9422]
[1742909727795,0.13136,87749.0,87747.0,0.7222]
[1742909728007,0.113949,87748.0,87747.0,0.9222]
[1742909728304,0.11482901,87748.0,87747.0,0.9222]
[1742909728506,0.34172901,87748.0,87747.0,0.0006]
[1742909728803,0.1139542,87744.0,87743.0,0.00045587]
[1742909729006,0.11483421,87744.0,87743.0,0.00045587]
[1742909729504,0.113975,87728.0,87727.0,0.00045596]
[1742909729707,0.24693501,87728.0,87727.0,0.04105596]
[1742909730005,0.24693501,87728.0,87727.0,0.04045596]
[1742909730406,0.47383501,87728.0,87727.0,0.04045596]
[1742909731099,0.36013501,87728.0,87727.0,0.40125596]
[1742909731296,0.24693501,87728.0,87727.0,0.40125596]
[1742909731699,0.24693501,87728.0,87727.0,0.04105596]
[1742909731901,0.24693501,87728.0,87727.0,0.04045596]
[1742909732204,0.60773501,87728.0,87727.0,0.04045596]
[1742909732615,0.60773501,87728.0,87727.0,0.00045596]
[1742909732800,0.75773501,87728.0,87727.0,6e-08]
[1742909733006,0.1139958,87712.0,87701.0,0.3608]
[1742909733203,0.60727581,87712.0,87701.0,0.3608]
[1742909733403,0.1140101,87701.0,87682.0,0.3608]
[1742909733611,0.1140114,87700.0,87674.0,0.0570223]
[1742909733801,0.34909141,87700.0,87699.0,0.26733562]
[1742909734715,0.1140166,87696.0,87672.0,0.46484143]
[1742909734901,0.9429766,87696.0,87695.0,0.00105612]
[1742909735105,0.9429766,87696.0,87695.0,0.00045612]
[1742909735408,1.3085766,87696.0,87695.0,0.00045612]
[1742909735608,0.00128,87696.0,87695.0,0.11447402]
[1742909735812,8e-05,87710.0,87695.0,0.11447402]
[1742909735813,0.13164,87707.0,87695.0,0.00109612]
[1742909736108,0.24652261,87707.0,87704.0,0.3608]
[1742909736310,0.13252001,87707.0,87704.0,0.3614]
[1742909736701,0.00088001,87707.0,87706.0,0.1140036]
[1742909736901,0.00017095,87708.0,87707.0,0.1140023]
[1742909737108,0.00017095,87708.0,87707.0,0.5846423]
[1742909737410,0.0004,87720.0,87707.0,1.83064]
[1742909737411,0.1139914,87716.0,87707.0,1.83064]
[1742909737603,0.1139906,87716.0,87715.0,0.3608]
[1742909737809,0.1140023,87707.0,87706.0,0.3608]
[1742909738013,0.1149223,87707.0,87706.0,0.4614]
[1742909738414,0.2462423,87707.0,87706.0,0.3614]
[1742909738915,0.2462423,87707.0,87706.0,0.0006]
[1742909739103,0.1140127,87699.0,87698.0,0.00017105]
[1742909739304,0.1140127,87699.0,87698.0,0.12077105]
[1742909739615,0.11489271,87699.0,87698.0,0.12077105]
[1742909740215,0.34829271,87699.0,87698.0,0.00077105]
[1742909740511,0.1140166,87696.0,87695.0,0.00045612]
[1742909740703,0.2468166,87696.0,87695.0,0.00045612]
[1742909740907,0.25555623,87696.0,87695.0,0.00045612]
[1742909741218,0.25555623,87696.0,87695.0,2e-08]
[1742909741219,0.40555623,87696.0,87695.0,2e-08]
[1742909741411,0.63895623,87696.0,87695.0,2e-08]
[1742909742212,0.80948674,87696.0,87695.0,2e-08]
[1742909742417,0.1140374,87680.0,87679.0,3e-08]
[1742909742714,0.61597704,87680.0,87679.0,3e-08]
[1742909742916,0.76597704,87680.0,87679.0,3e-08]
[1742909743117,0.78650755,87680.0,87679.0,3e-08]
[1742909743415,0.93650755,87680.0,87679.0,3e-08]
[1742909743621,0.1140582,87664.0,87663.0,2e-08]
[1742909743805,0.96897821,87664.0,87663.0,2e-08]
[1742909744011,1.12778389,87664.0,87663.0,2e-08]
[1742909744213,1.30706929,87664.0,87663.0,2e-08]
[1742909744513,0.53062929,87664.0,87663.0,2e-08]
[1742909744716,0.53062929,87664.0,87663.0,0.45080002]
[1742909744717,0.32153109,87664.0,87663.0,0.45080002]
[1742909744915,0.2562531,87664.0,87663.0,0.09060002]
[1742909745120,0.2562531,87664.0,87663.0,0.09000002]
[1742909745311,0.2562531,87664.0,87663.0,0.00060002]
[1742909745511,0.2562531,87664.0,87663.0,2e-08]
[1742909746111,0.2562531,87664.0,87663.0,0.10000002]
[1742909746306,0.1421949,87664.0,87663.0,0.57485952]
[1742909746514,0.00875489,87664.0,87663.0,0.36140002]
[1742909746715,0.0098349,87664.0,87663.0,0.81780002]
[1742909746912,0.00998812,87664.0,87663.0,0.81780002]
[1742909747113,0.00998812,87664.0,87663.0,0.58780002]
[1742909747414,0.12404632,87664.0,87663.0,0.58780002]
[1742909748320,0.13297993,87664.0,87663.0,0.58780002]
[1742909748724,0.13297993,87664.0,87663.0,0.11470002]
[1742909748909,0.13297993,87664.0,87663.0,0.11410002]
[1742909749111,0.26533993,87664.0,87663.0,0.47558002]
[1742909749618,0.26533993,87664.0,87663.0,0.11478002]
[1742909750019,0.26533993,87664.0,87663.0,0.11410002]
[1742909750324,0.37643993,87664.0,87663.0,0.11410002]
[1742909750520,0.37643993,87664.0,87663.0,0.11470002]
[1742909750820,0.24407993,87664.0,87663.0,0.47490002]
[1742909751020,0.26517993,87664.0,87663.0,0.47550002]
[1742909751224,0.26517993,87664.0,87663.0,0.00060002]
[1742909751428,0.26517993,87664.0,87663.0,2e-08]
[1742909752110,0.25631182,87664.0,87663.0,2e-08]
[1742909753707,0.12411182,87664.0,87663.0,2e-08]
[1742909753915,0.48901182,87664.0,87663.0,2e-08]
[1742909754807,0.25579182,87664.0,87663.0,2e-08]
[1742909755521,0.48939182,87664.0,87663.0,2e-08]
[1742909755823,0.60479182,87664.0,87663.0,2e-08]
[1742909756416,0.60467182,87664.0,87663.0,2e-08]
[1742909757020,0.114079,87648.0,87647.0,0.00045637]
[1742909757229,0.25638292,87648.0,87647.0,0.00153637]
[1742909757522,0.25638292,87648.0,87647.0,7e-08]
[1742909757826,0.1140998,87632.0,87624.0,0.2336]
[1742909758125,0.25696372,87632.0,87631.0,0.00185646]
[1742909758311,0.0570533,87627.0,87616.0,0.1226]
[1742909758518,0.1141194,87617.0,87616.0,0.2421]
[1742909758720,0.1141207,87616.0,87615.0,0.00045654]
[1742909758921,0.71424461,87616.0,87615.0,0.00045654]
[1742909759118,0.1141324,87607.0,87606.0,0.21686549]
[1742909759318,0.16368822,87607.0,87606.0,0.21686549]
[1742909760125,0.14869605,87607.0,87606.0,0.21686549]
[1742909760325,0.03456365,87607.0,87606.0,0.43099919]
[1742909760525,0.03258168,87607.0,87606.0,0.47686549]
[1742909760721,0.13412,87617.0,87606.0,0.73686549]
[1742909760921,0.13412,87618.0,87616.0,0.3608]
[1742909761225,0.1159581,87618.0,87617.0,0.1226]
[1742909762227,0.00184,87618.0,87617.0,0.2326]
[1742909762419,0.1141181,87618.0,87617.0,0.244]
[1742909762612,0.2507181,87618.0,87617.0,0.244]
[1742909762818,0.1159581,87618.0,87617.0,0.314]
[1742909763030,0.2506781,87618.0,87617.0,0.244]
[1742909764025,0.2506781,87618.0,87617.0,0.6048]
[1742909765329,0.6114781,87618.0,87617.0,0.244]
[1742909765629,0.2506781,87618.0,87617.0,0.244]
[1742909767529,0.2504381,87618.0,87617.0,0.244]
[1742909768317,0.2504381,87618.0,87617.0,0.344]
[1742909768529,0.1159581,87618.0,87617.0,0.344]
[1742909769431,0.1159581,87618.0,87617.0,0.244]
[1742909769923,0.1159581,87618.0,87617.0,0.354]
[1742909770116,0.2502781,87618.0,87617.0,0.244]
[1742909770431,0.1159581,87618.0,87617.0,0.354]
[1742909770628,0.2501981,87618.0,87617.0,0.354]
[1742909770929,0.2501981,87618.0,87617.0,0.244]
[1742909772117,0.2499181,87618.0,87617.0,0.334]
[1742909772519,0.1159581,87618.0,87617.0,0.334]
[1742909773116,0.1159581,87618.0,87617.0,0.244]
[1742909773323,0.1159581,87618.0,87617.0,0.1214]
[1742909773619,0.1159581,87618.0,87605.0,0.3608]
[1742909773620,0.1141324,87607.0,87606.0,0.1161]
[1742909773824,0.2497724,87607.0,87606.0,0.4891]
[1742909774421,0.2497724,87607.0,87603.0,0.3608]
[1742909774632,0.1141402,87601.0,87600.0,0.05542053]
[1742909774932,0.00192,87601.0,87600.0,0.16542053]
[1742909775131,0.00192,87601.0,87600.0,0.05542053]
[1742909775323,0.00184,87601.0,87600.0,0.05542053]
[1742909775529,0.00184,87601.0,87600.0,0.30542053]
[1742909775727,0.00184,87601.0,87600.0,1.04036203]
[1742909776024,0.00875806,87601.0,87600.0,0.76682053]
[1742909776224,0.12289826,87601.0,87600.0,0.41682053]
[1742909776434,0.12417826,87601.0,87600.0,0.41682053]
[1742909776624,0.12417826,87601.0,87600.0,0.51682053]
[1742909776818,0.12417826,87601.0,87600.0,0.52682053]
[1742909777021,0.12417826,87601.0,87600.0,0.05602053]
[1742909777228,0.12417826,87601.0,87600.0,0.05542053]
[1742909777626,0.12417826,87601.0,87600.0,0.02275885]
[1742909777833,0.1141415,87600.0,87599.0,0.00045662]
[1742909778028,0.1141415,87600.0,87558.0,0.00859228]
[1742909778029,0.1141624,87584.0,87554.0,0.01051801]
[1742909778230,0.6103624,87584.0,87562.0,0.117]
[1742909778735,0.1141832,87568.0,87562.0,0.117]
[1742909778945,0.4763432,87568.0,87562.0,0.117]
[1742909779137,0.4763432,87568.0,87551.0,0.00045687]
[1742909779138,0.6107432,87568.0,87551.0,0.00045687]
[1742909779328,0.61950126,87568.0,87551.0,0.00045687]
[1742909779522,0.85780126,87568.0,87551.0,0.00045687]
[1742909780742,0.1142041,87552.0,87551.0,0.00045687]
[1742909780931,0.6132441,87552.0,87551.0,0.00113687]
[1742909781335,0.8499441,87552.0,87551.0,0.00113687]
[1742909781638,0.1142106,87547.0,87546.0,0.33215573]
[1742909781935,0.1154906,87547.0,87546.0,0.33283573]
[1742909782122,0.1142197,87540.0,87539.0,0.34139756]
[1742909782330,0.1142458,87520.0,87519.0,0.00053704]
[1742909782524,1.8038858,87520.0,87519.0,0.00053704]
[1742909782728,1.6664858,87520.0,87519.0,4e-08]
[1742909782931,2.13333437,87520.0,87519.0,4e-08]
[1742909783135,0.1142576,87511.0,87510.0,0.01087334]
[1742909783329,0.1142628,87507.0,87506.0,0.2025845]
[1742909783541,0.4765428,87507.0,87506.0,0.0511305]
[1742909783841,0.4765428,87507.0,87490.0,8e-05]
[1742909783842,0.114285,87490.0,87476.0,0.46484143]
[1742909784140,1.03357052,87490.0,87486.0,8e-05]
[1742909784450,1.03357052,87490.0,87469.0,0.42862098]
[1742909784451,0.1143111,87470.0,87469.0,0.42862098]
[1742909784632,1.8049511,87470.0,87469.0,0.42862098]
[1742909784944,1.8066711,87470.0,87469.0,0.42862098]
[1742909785235,0.114319,87464.0,87463.0,0.56764572]
[1742909785438,0.1143268,87458.0,87446.0,0.39995123]
[1742909785644,0.1143412,87447.0,87446.0,0.26450353]
[1742909785826,0.78587171,87447.0,87446.0,0.26404615]
[1742909786141,0.93755172,87447.0,87446.0,0.22402738]
[1742909786341,0.93755172,87447.0,87446.0,0.07014821]
[1742909786641,0.79739172,87447.0,87446.0,0.00733091]
[1742909786842,0.1143477,87442.0,87441.0,0.46983212]
[1742909787027,0.00164001,87442.0,87441.0,0.56983212]
[1742909787335,0.14208001,87442.0,87441.0,0.81243212]
[1742909787642,0.25630771,87442.0,87441.0,0.81243212]
[1742909788033,0.11598771,87442.0,87441.0,0.81243212]
[1742909788342,0.2544677,87442.0,87441.0,0.3426]
[1742909788542,0.11598771,87442.0,87441.0,0.3426]
[1742909789042,0.11598771,87442.0,87441.0,1.8426]
[1742909789340,0.3608,87449.0,87441.0,1.8426]
[1742909789341,0.3608,87449.0,87444.0,0.1143442]
[1742909789531,0.00025149,87455.0,87444.0,0.1143442]
[1742909789532,0.00017149,87455.0,87446.0,0.3608]
[1742909789739,8e-05,87463.0,87454.0,0.4751321]
[1742909789940,0.00128001,87463.0,87455.0,0.3426]
[1742909790244,0.2543216,87462.0,87455.0,0.4538]
[1742909790438,0.1143281,87457.0,87456.0,0.3426]
[1742909790642,0.11544811,87457.0,87456.0,0.3432]
[1742909791144,0.11544811,87457.0,87456.0,0.0006]
[1742909791341,0.1143386,87449.0,87448.0,0.00017149]
[1742909791548,0.11545861,87449.0,87448.0,0.00017149]
[1742909791751,0.11545861,87449.0,87448.0,0.34277149]
[1742909792042,0.00112001,87449.0,87448.0,0.70417149]
[1742909792238,0.1143361,87451.0,87448.0,0.34337149]
[1742909792435,0.14008,87460.0,87449.0,0.4659]
[1742909792656,0.1143373,87450.0,87449.0,0.46658]
[1742909792843,0.1150573,87450.0,87449.0,0.12398]
[1742909793037,0.1150573,87450.0,87449.0,0.4659]
[1742909793237,0.1150573,87450.0,87449.0,0.46666]
[1742909793435,0.1150573,87450.0,87449.0,0.46674]
[1742909794243,0.45349256,87450.0,87449.0,0.46674]
[1742909794440,0.33915526,87450.0,87449.0,0.2608273]
[1742909794644,0.45349256,87450.0,87449.0,0.2608273]
[1742909795040,0.45349256,87450.0,87449.0,0.2600673]